[Event "7th Sharjah Masters 2024"]
[Site "Sharjah"]
[Date "2024.05.14"]
[Round "1.16"]
[White "Erdogmus, Yagiz Kaan"]
[Black "Nihal Sarin"]
[Result "1/2-1/2"]
[ECO "C64"]
[WhiteElo "2554"]
[BlackElo "2680"]
[Annotator "TA"]
[PlyCount "48"]
[EventDate "2024.05.13"]
[EventType "swiss"]
[EventCountry "UAE"]
[SourceTitle "playchess.com"]
[Source "ChessBase"]
[SourceQuality "1"]
[TimeControl "5400+30"]

{[%evp 10,48,42,26,47,29,58,32,32,49,35,28,25,38,30,36,34,34,84,63,70,72,106,93,134,129,168,61,72,62,71,74,66,42,37,41,43,46,56,47,57]} 1. e4 {[%emt 0:00:03]} e5 {[%emt 0:01:00]} 2. Nf3 {[%emt 0:00:07]} Nc6 {[%emt 0:00:05]} 3. Bb5 {[%emt 0:00:05]} a6 {[%emt 0:03:40]} 4. Ba4 {[%emt 0:00:15]} Bc5 {[%emt 0:03:47]} 5. c3 {[%emt 0:02:02]} Nge7 {[%emt 0:01:15]} 6. O-O {[%emt 0:01:07]} Ng6 {[%emt 0:01:04]} 7. d4 {[%emt 0:00:07]} Ba7 {[%emt 0:00:04]} 8. Bxc6 {[%emt 0:00:49]} dxc6 {[%emt 0:00:08]} 9. Nxe5 {[%emt 0:00:09]} Nxe5 {[%emt 0:01:04]} 10. dxe5 {[%emt 0:00:04]} Qh4 {[%emt 0:01:03]} 11. Qf3 {[%emt 0:08:29]} Bg4 {[%emt 0:18:31]} 12. Qf4 {[%emt 0:06:40] [#] Threatens to win with h3.} Qh5 {[%emt 0:08:15]} 13. h3 {[%emt 0:20:51]} Be6 {[%emt 0:00:09]} (13... Bd7 $14) 14. Be3 $16 {[%emt 0:03:04]} Bxe3 {[%emt 0:00:48]} 15. Qxe3 {[%emt 0:00:08]} Qxe5 {[%emt 0:00:06]} 16. f4 {[%emt 0:01:10][%cal Bf2f4,Bf4f5][%mdl 32]} Qa5 {[%emt 0:04:16][%cal Oe8c8]} 17. f5 {[%emt 0:02:57]} Bc4 {[%emt 0:11:44]} 18. Re1 {[%emt 0:06:52]} ({White must play} 18. Rd1 $18) 18... f6 {[%emt 0:07:43][%cal Oe8c8]} 19. Nd2 {[%emt 0:14:19]} Bf7 {[%emt 0:00:25][%cal Oa5b6]} 20. e5 {[%emt 0:01:00]} fxe5 {[%emt 0:01:21][%cal Oe8c8]} 21. Nb3 {[%emt 0:10:58] White is more active. White is slightly better.} Qb6 {[%emt 0:08:10]} 22. Qxb6 {[%emt 0:01:42]} cxb6 {[%emt 0:00:14]} 23. Rxe5+ {[%emt 0:00:02]} Kf8 $1 {[%emt 0:00:45]} 24. Rae1 {[%emt 0:02:13]} h5 {[%emt 0:04:09] Weighted Error Value: White=0.11 (very precise) /Black=0.13 (very precise) .  Mistake:       	White=1     	Black=1      Inaccurate:     	White=1     	Black=3      OK:         	White=8     	Black=7      Best:        	White=4     	---        Strong:       	---       	Black=1} 1/2-1/2

[Event "7th Sharjah Masters 2024"]
[Site "Sharjah"]
[Date "2024.05.14"]
[Round "1.17"]
[White "Martirosyan, Haik M."]
[Black "Can, Emre"]
[Result "1/2-1/2"]
[ECO "B51"]
[WhiteElo "2679"]
[BlackElo "2549"]
[Annotator "TA"]
[PlyCount "107"]
[EventDate "2024.05.13"]
[EventType "swiss"]
[EventCountry "UAE"]
[SourceTitle "playchess.com"]
[Source "ChessBase"]
[SourceQuality "1"]
[TimeControl "5400+30"]

{[%evp 9,107,0,29,8,12,-3,0,0,4,0,0,0,0,-7,0,-6,-12,-13,-6,-24,11,4,0,-29,-14,-35,0,0,-5,0,2,0,1,7,0,0,0,0,0,0,13,12,16,11,12,5,4,3,14,16,20,18,51,47,37,28,34,0,0,0,30,18,18,22,31,0,0,0,0,0,0,0,0,-9,0,0,0,0,8,0,0,0,0,0,0,0,0,0,0,0,0,0,0,0,0,0,0,0,0,0]} 1. e4 {[%emt 0:00:05]} c5 {[%emt 0:00:31]} 2. Nf3 {[%emt 0:00:10]} d6 {[%emt 0:00:42]} 3. Bb5+ {[%emt 0:00:22]} Nd7 {[%emt 0:00:21]} 4. Ba4 {[%emt 0:00:45]} Ngf6 {[%emt 0:01:00]} 5. O-O {[%emt 0:00:47]} e6 {[%emt 0:00:23]} 6. d3 {[%emt 0:00:28]} Be7 {[%emt 0:01:12]} 7. c4 {[%emt 0:00:25]} O-O {[%emt 0:01:08]} 8. Nc3 {[%emt 0:00:15]} Ne5 {[%emt 0:01:21]} 9. Ne1 {[%emt 0:02:38]} Bd7 {[%emt 0:02:09]} 10. Bxd7 {[%emt 0:00:23]} Nfxd7 {[%emt 0:01:47]} 11. f4 {[%emt 0:00:33]} Nc6 {[%emt 0:00:07]} 12. Bd2 {[%emt 0:02:16]} a6 {[%emt 0:24:07]} 13. a4 {[%emt 0:02:41]} Nb4 {[%emt 0:03:16]} 14. Kh1 {[%emt 0:23:24]} Nb8 {[%emt 0:01:31]} 15. Ne2 {[%emt 0:07:51]} N8c6 {[%emt 0:01:37]} 16. Ng3 {[%emt 0:12:02]} (16. d4 $5) 16... f5 {[%emt 0:14:06]} 17. Bc3 {[%emt 0:02:25]} Bh4 {[%emt 0:10:57]} 18. Nf3 {[%emt 0:03:20]} Bxg3 {[%emt 0:00:22]} 19. hxg3 {[%emt 0:00:02]} Qe8 {[%emt 0:00:09]} 20. exf5 {[%emt 0:03:08]} Qh5+ {[%emt 0:07:23]} 21. Nh4 {[%emt 0:03:02]} Qxd1 {[%emt 0:00:26]} 22. Raxd1 {[%emt 0:00:03]} exf5 {[%emt 0:00:19]} 23. d4 {[%emt 0:01:21]} g6 {[%emt 0:14:36]} 24. Nf3 {[%emt 0:07:58]} Rae8 {[%emt 0:04:46]} 25. dxc5 {[%emt 0:03:36]} dxc5 {[%emt 0:00:02]} 26. Rd7 {[%emt 0:00:46]} Rf7 {[%emt 0:00:06][%cal Bf8f7,Bf7e7,Be7e6][%mdl 32]} 27. Rd6 {[%emt 0:01:24]} Rfe7 {[%emt 0:01:37]} 28. Rf2 {[%emt 0:06:03] Inhibits Nc2.} Re6 {[%emt 0:01:01]} 29. Rd1 {[%emt 0:00:22]} Na2 {[%emt 0:03:31]} 30. Be5 {[%emt 0:00:29]} Nxe5 {[%emt 0:00:07]} 31. Nxe5 {[%emt 0:00:13]} Nb4 {[%emt 0:00:18][%cal Ba2b4,Bb4c6,Bc6a5][%mdl 32]} 32. Rfd2 {[%emt 0:00:55]} Nc6 {[%emt 0:00:59]} 33. Nf3 {[%emt 0:04:54]} Na5 {[%emt 0:00:39]} 34. Rd7 {[%emt 0:03:20]} R6e7 {[%emt 0:00:59]} 35. Ne5 {[%emt 0:01:43]} Nc6 {[%emt 0:00:17]} 36. Rxe7 {[%emt 0:00:48]} Rxe7 {[%emt 0:00:07]} 37. Rd5 {[%emt 0:01:07]} Nxe5 {[%emt 0:00:21] The position is equal.} 38. fxe5 $11 {[%emt 0:00:01][%mdl 4096] Endgame. KR-KR} Rc7 {[%emt 0:00:51]} 39. a5 {[%emt 0:00:08]} Kf7 {[%emt 0:00:14]} 40. Rd6 {[%emt 0:00:04]} Re7 {[%emt 0:00:59]} 41. Rb6 {[%emt 0:00:42]} Rxe5 {[%emt 0:00:33]} 42. Rxb7+ {[%emt 0:00:06]} Kf6 {[%emt 0:00:16]} 43. Rxh7 {[%emt 0:00:56]} Re1+ {[%emt 0:00:54]} 44. Kh2 {[%emt 0:00:01]} Ra1 {[%emt 0:00:06]} 45. Rd7 {[%emt 0:00:57]} Rxa5 {[%emt 0:00:07]} 46. Rd5 {[%emt 0:00:12]} Ra2 {[%emt 0:00:38]} 47. Rxc5 {[%emt 0:00:09]} Rxb2 {[%emt 0:00:07]} 48. Rc6+ {[%emt 0:00:02]} Kg5 {[%emt 0:01:15]} 49. Rxa6 {[%emt 0:00:07]} Rc2 {[%emt 0:00:06]} 50. Rc6 {[%emt 0:00:08]} Rc1 {[%emt 0:00:25]} 51. c5 {[%emt 0:00:22]} Kh5 {[%emt 0:00:38]} 52. Rc8 {[%emt 0:00:10]} Kg4 {[%emt 0:00:45]} 53. c6 {[%emt 0:00:33]} g5 {[%emt 0:00:20]} 54. Ra8 {[%emt 0:00:44] Weighted Error Value: White=0.04 (flawless) /Black=0.05 (flawless) .  Inaccurate:     	White=3     	Black=4      OK:         	White=21    	Black=22     Best:        	White=1     	Black=1} 1/2-1/2

[Event "7th Sharjah Masters 2024"]
[Site "Sharjah"]
[Date "2024.05.14"]
[Round "1.18"]
[White "Erdos, Viktor"]
[Black "Shankland, Sam"]
[Result "1/2-1/2"]
[ECO "D38"]
[WhiteElo "2546"]
[BlackElo "2671"]
[Annotator "TA"]
[PlyCount "129"]
[EventDate "2024.05.13"]
[EventType "swiss"]
[EventCountry "UAE"]
[SourceTitle "playchess.com"]
[Source "ChessBase"]
[SourceQuality "1"]
[TimeControl "5400+30"]

{[%evp 62,129,-88,-79,-78,-91,-81,-84,-94,-163,-170,-269,-192,-199,-258,-303,-185,-181,-181,-189,-46,-46,-46,-45,-77,-80,-49,-49,-47,-135,-135,-322,-322,-281,0,0,0,0,0,0,-8,-15,0,-8,-18,-33,-34,-46,0,0,-8,-46,-46,-46,-47,-47,-47,-47,-47,-47,0,0,0,0,0,0,8,8,8,8]} 1. d4 {[%emt 0:00:09]} Nf6 {[%emt 0:00:10]} 2. c4 {[%emt 0:00:06]} e6 {[%emt 0:00:04]} 3. Nf3 {[%emt 0:00:05]} d5 {[%emt 0:00:05]} 4. Bg5 {[%emt 0:00:09]} Bb4+ {[%emt 0:00:21]} 5. Nc3 {[%emt 0:00:19]} O-O {[%emt 0:00:26]} 6. e3 {[%emt 0:02:10]} Nbd7 {[%emt 0:00:37]} 7. cxd5 {[%emt 0:05:52]} exd5 {[%emt 0:00:05]} 8. Rc1 {[%emt 0:00:06]} h6 {[%emt 0:01:07]} 9. Bh4 {[%emt 0:00:09]} c5 {[%emt 0:01:00]} 10. dxc5 {[%emt 0:30:44]} Qa5 {[%emt 0:00:14]} 11. a3 {[%emt 0:12:58]} Bxc3+ {[%emt 0:00:09]} 12. Rxc3 {[%emt 0:00:05]} Ne4 {[%emt 0:00:15]} 13. b4 {[%emt 0:00:05]} Nxc3 {[%emt 0:00:04]} 14. Qa1 {[%emt 0:00:02]} Qa4 {[%emt 0:00:22]} 15. Qxc3 {[%emt 0:00:03]} a5 {[%emt 0:00:09]} 16. b5 {[%emt 0:00:49]} Nxc5 {[%emt 0:02:23]} 17. Qxc5 {[%emt 0:00:30]} Bf5 {[%emt 0:01:32]} 18. Qc1 {[%emt 0:21:38]} Rac8 {[%emt 0:09:22]} 19. Qa1 {[%emt 0:00:06]} Bg4 {[%emt 0:00:41]} 20. Bg3 {[%emt 0:09:58]} Bxf3 {[%emt 0:04:11]} 21. gxf3 {[%emt 0:00:53]} d4 {[%emt 0:00:19]} 22. Bh3 {[%emt 0:10:31]} Qxb5 {[%emt 0:07:32]} 23. Bxc8 {[%emt 0:00:04]} Rxc8 {[%emt 0:00:04]} 24. Qd1 {[%emt 0:02:40]} Rc3 {[%emt 0:01:59]} 25. exd4 {[%emt 0:00:35]} g5 {[%emt 0:03:23]} 26. Rg1 {[%emt 0:00:03]} Kh7 {[%emt 0:00:47]} 27. d5 {[%emt 0:02:26]} Qc4 {[%emt 0:00:33]} 28. d6 {[%emt 0:00:02]} Rc1 {[%emt 0:02:24]} 29. Kd2 {[%emt 0:00:06]} Qc3+ {[%emt 0:01:48]} 30. Ke2 {[%emt 0:00:02]} Qb2+ {[%emt 0:01:43]} 31. Qd2 {[%emt 0:00:45]} Rc2 {[%emt 0:00:54]} 32. Rd1 {[%emt 0:00:06]} Qb5+ {[%emt 0:02:29]} 33. Ke1 {[%emt 0:00:41]} Rxd2 {[%emt 0:00:05]} 34. Rxd2 {[%emt 0:00:01]} Qd7 {[%emt 0:00:17]} 35. Re2 {[%emt 0:00:46]} (35. f4 $17) 35... Kg6 {[%emt 0:00:42]} 36. Re7 {[%emt 0:01:56]} (36. f4 $142) 36... Qb5 {[%emt 0:00:59]} 37. Rc7 {[%emt 0:00:42]} (37. d7 $2 Qd3 38. f4 Kf6 $19 (38... Qxa3 $2 39. d8=Q $18)) 37... Kf6 {[%emt 0:07:53]} 38. h4 {[%emt 0:00:09]} Qd5 {[%emt 0:02:09]} 39. hxg5+ {[%emt 0:00:07]} hxg5 {[%emt 0:01:05]} 40. Rc2 {[%emt 0:00:34]} Kg6 {[%emt 0:10:09]} (40... Qxf3 $19 {Hoping for ...Qe4+.} 41. Rd2 Qh1+ (41... Qxa3 42. d7 $16) 42. Ke2 Qe4+ 43. Kf1 Qc4+ 44. Kg2 Qc3) 41. Rd2 $15 {[%emt 0:00:09]} Qe6+ {[%emt 0:00:04]} 42. Kf1 {[%emt 0:00:12]} Qd7 {[%emt 0:00:12]} 43. Kg2 {[%emt 0:00:36]} f5 {[%emt 0:02:05]} 44. Be5 {[%emt 0:00:24]} f4 {[%emt 0:00:27]} 45. Bc3 {[%emt 0:01:18] [#]} ({Better is} 45. a4 $15) 45... g4 $1 $17 {[%emt 0:02:56]} 46. Bb2 $2 {[%emt 0:00:44] [#]} (46. Bxa5 $17 {is the only way for White.} gxf3+ 47. Kxf3) 46... b5 $1 $19 {[%emt 0:03:00]} 47. Rd4 {[%emt 0:00:43]} Kf5 $2 {[%emt 0:03:42]} (47... Qc6 $19 48. Rxf4 (48. d7 $2 Qxf3+ 49. Kg1 g3 $19) 48... Qxd6 (48... gxf3+ 49. Rxf3 Kh5 50. d7 $17) 49. Rxg4+ (49. Rf6+ $2 Qxf6 50. Bxf6 Kxf6 $19) 49... Kf7 50. Rg7+ Kf8) 48. fxg4+ $11 {[%emt 0:00:11]} Kxg4 {[%emt 0:00:09]} 49. f3+ {[%emt 0:00:02]} Kf5 {[%emt 0:00:09]} 50. Kf2 {[%emt 0:00:06]} Ke6 {[%emt 0:02:52]} 51. Ke1 {[%emt 0:00:33]} Kf7 {[%emt 0:01:24]} 52. Rxf4+ {[%emt 0:00:27]} Ke8 {[%emt 0:00:03]} 53. Rd4 {[%emt 0:00:14]} Kd8 {[%emt 0:00:52]} 54. Kd2 {[%emt 0:00:54]} Qf7 {[%emt 0:00:47]} (54... Qg7 $15 {might be stronger.} 55. d7 Qg2+ 56. Kc1 b4 (56... Qxf3 57. Kb1 $11) 57. axb4 axb4 (57... Qxf3 58. bxa5 Qb3 59. Kb1 $11) 58. Rxb4 Qg1+ (58... Qxf3 59. Rd4 $11) 59. Kc2 Qf2+ (59... Kxd7 60. Rd4+ Kc6 61. Rc4+ Kd5 62. Rd4+ Kc5 63. Rd3 $11) 60. Kd3 Qxf3+ (60... Kxd7 61. Bc3 $11) 61. Kd2 Qg2+ (61... Kxd7 62. Rd4+ Ke8 63. Bc3 $11) 62. Kd3 Qg3+ (62... Kxd7 63. Bc3 $11) 63. Kc2 Qh2+ (63... Kxd7 64. Rd4+ Kc7 65. Bc3 $11) 64. Kc1 Qg1+ (64... Kxd7 65. Rd4+ Ke7 66. Bc3 $11) 65. Kc2 Kxd7) 55. d7 $1 $11 {[%emt 0:00:42]} Qb3 {[%emt 0:01:44]} 56. Kc1 {[%emt 0:00:14]} Qxf3 {[%emt 0:27:33]} 57. Rd2 {[%emt 0:01:36]} Qf4 {[%emt 0:00:00]} 58. Bc3 {[%emt 0:00:22]} b4 $1 {[%emt 0:00:00]} 59. axb4 $1 {[%emt 0:00:03]} axb4 {[%emt 0:00:00]} 60. Bd4 {[%emt 0:00:58]} Qh6 {[%emt 0:00:00]} (60... Qf1+ $15 61. Kb2 Kxd7 62. Bc3+ Kc6 63. Bxb4 Kb6) 61. Be5 $1 $11 {[%emt 0:00:34]} Qc6+ {[%emt 0:00:00]} 62. Kb2 {[%emt 0:00:11]} b3 {[%emt 0:00:00]} 63. Bc3 {[%emt 0:00:28]} (63. Kxb3 $2 {too greedy.} Qe6+ 64. Kc2 Qxe5 $19) 63... Qxd7 {[%emt 0:00:00]} 64. Rxd7+ {[%emt 0:00:04]} Kxd7 {[%emt 0:00:00]} 65. Kxb3 {[%emt 0:02:03]} 1/2-1/2

[Event "7th Sharjah Masters 2024"]
[Site "Sharjah"]
[Date "2024.05.14"]
[Round "1.19"]
[White "Aravindh, Chithambaram VR."]
[Black "Bharath Subramaniyam H"]
[Result "1-0"]
[ECO "D73"]
[WhiteElo "2671"]
[BlackElo "2545"]
[Annotator "TA"]
[PlyCount "77"]
[EventDate "2024.05.13"]
[EventType "swiss"]
[EventCountry "UAE"]
[SourceTitle "playchess.com"]
[Source "ChessBase"]
[SourceQuality "1"]
[TimeControl "5400+30"]

{[%evp 10,77,19,0,34,0,8,0,-4,-5,0,-24,6,6,10,19,28,24,25,-10,21,27,40,35,71,60,125,122,122,123,122,123,129,124,137,124,172,146,158,156,163,162,158,111,108,113,164,169,173,186,182,184,183,177,185,190,461,436,698,698,690,656,957,910,943,901,832,816,29984,29985]} 1. Nf3 {[%emt 0:00:04]} d5 {[%emt 0:00:22]} 2. g3 {[%emt 0:00:14]} g6 {[%emt 0:00:18]} 3. Bg2 {[%emt 0:00:10]} Bg7 {[%emt 0:00:06]} 4. d4 {[%emt 0:00:08]} c6 {[%emt 0:00:07]} 5. O-O {[%emt 0:00:18]} Nf6 {[%emt 0:00:07]} 6. c4 {[%emt 0:00:14]} dxc4 {[%emt 0:00:53]} 7. a4 {[%emt 0:00:11]} Ne4 {[%emt 0:07:21]} 8. Nc3 {[%emt 0:00:16]} Nd6 {[%emt 0:03:39] The position is equal.} 9. e4 {[%emt 0:00:24]} O-O {[%emt 0:01:34]} 10. Be3 {[%emt 0:10:40]} Bg4 {[%emt 0:13:31]} 11. h3 {[%emt 0:04:37]} Bxf3 {[%emt 0:00:17]} 12. Qxf3 {[%emt 0:00:14]} Nd7 {[%emt 0:08:16]} 13. Qe2 {[%emt 0:23:23][%mdl 1024] White has compensation.} e5 {[%emt 0:06:14]} 14. Rad1 {[%emt 0:05:10]} Qe7 {[%emt 0:05:46]} 15. d5 {[%emt 0:04:38] [#] dxc6 would now be deadly.} Rfd8 {[%emt 0:13:56]} 16. h4 {[%emt 0:07:02]} h5 {[%emt 0:14:14]} 17. Bh3 {[%emt 0:02:11]} c5 {[%emt 0:09:27]} (17... Kh7 $14) 18. Nb5 $16 {[%emt 0:11:32]} b6 {[%emt 0:04:50]} 19. Nxd6 {[%emt 0:03:23]} Qxd6 {[%emt 0:00:02]} 20. Qxc4 {[%emt 0:00:07]} a6 {[%emt 0:00:42]} 21. Rc1 {[%emt 0:08:10]} Bf8 {[%emt 0:01:52]} 22. Rc2 {[%emt 0:04:37] White is more active.} Rdb8 {[%emt 0:01:21]} (22... Bg7 $16 23. a5 bxa5) 23. Qd3 {[%emt 0:01:35]} b5 {[%emt 0:01:31]} 24. b3 {[%emt 0:01:35]} bxa4 {[%emt 0:01:15]} 25. bxa4 {[%emt 0:00:04]} Rb4 {[%emt 0:00:16]} 26. Rc4 {[%emt 0:05:47]} (26. a5 $142) 26... Rab8 {[%emt 0:01:25]} 27. Rfc1 {[%emt 0:00:06]} Rxc4 {[%emt 0:02:10]} (27... a5 $16) 28. Rxc4 $18 {[%emt 0:00:07]} (28. Qxc4 $6 Rb4 29. Qc2 Nf6 $14) 28... Rb4 {[%emt 0:01:57]} 29. Bf1 {[%emt 0:01:00]} Qb8 {[%emt 0:00:43] [#]} 30. Bd2 $1 {[%emt 0:07:33] Prevents a5} ({Resist} 30. Rxb4 cxb4 31. Qxa6 b3 $16) 30... Rb1 {[%emt 0:00:41]} 31. Rc1 {[%emt 0:00:00]} Rxc1 {[%emt 0:00:20]} 32. Bxc1 {[%emt 0:00:00]} Qb4 $2 {[%emt 0:00:20]} (32... c4 33. Qxc4 Nc5) 33. Qxa6 {[%emt 0:00:00]} Qxe4 {[%emt 0:00:02]} (33... c4 $142 34. Qxc4 Nf6 35. Qxb4 Bxb4) 34. a5 {[%emt 0:00:00][%cal Ba4a5,Ba5a6,Ba6a7][%mdl 32]} Qxd5 {[%emt 0:01:04]} 35. Qc8 {[%emt 0:00:00]} c4 {[%emt 0:00:38]} 36. a6 {[%emt 0:00:35][%cal Oc1e3] aiming for Be3!} ({Weaker is} 36. Bxc4 Qxa5 37. Bxf7+ (37. Qxd7 Qe1+ 38. Kh2 Qxf2+ 39. Kh3 Qf3 $11) 37... Kxf7 $14) 36... Nb6 {[%emt 0:00:37]} 37. Qb8 {[%emt 0:00:18]} Nd7 {[%emt 0:00:24]} 38. Qd8 {[%emt 0:00:40] And now a7 would win.} Kg7 {[%emt 0:00:40]} 39. a7 {[%emt 0:00:11] Weighted Error Value: White=0.08 (flawless) /Black=0.44.  Mistake:       	White=1     	Black=5      Inaccurate:     	White=2     	Black=3      OK:         	White=13    	Black=6      Best:        	White=2     	---} 1-0

[Event "7th Sharjah Masters 2024"]
[Site "Sharjah"]
[Date "2024.05.14"]
[Round "1.20"]
[White "Sivuk, Vitaly"]
[Black "Yakubboev, Nodirbek"]
[Result "1/2-1/2"]
[ECO "E53"]
[WhiteElo "2544"]
[BlackElo "2665"]
[Annotator "TA"]
[PlyCount "32"]
[EventDate "2024.05.13"]
[EventType "swiss"]
[EventCountry "UAE"]
[SourceTitle "playchess.com"]
[Source "ChessBase"]
[SourceQuality "1"]
[TimeControl "5400+30"]

{[%evp 18,32,3,0,0,0,18,12,17,16,18,18,0,18,22,25,18]} 1. d4 {[%emt 0:00:04]} Nf6 {[%emt 0:00:08]} 2. c4 {[%emt 0:00:13]} e6 {[%emt 0:00:06]} 3. Nc3 {[%emt 0:00:09]} Bb4 {[%emt 0:00:11]} 4. e3 {[%emt 0:00:12]} O-O {[%emt 0:00:19]} 5. Bd3 {[%emt 0:00:15]} d5 {[%emt 0:01:11]} 6. a3 {[%emt 0:00:12]} Bxc3+ {[%emt 0:01:08]} 7. bxc3 {[%emt 0:00:08]} dxc4 {[%emt 0:00:04]} 8. Bxc4 {[%emt 0:00:06]} c5 {[%emt 0:00:03]} 9. Nf3 {[%emt 0:00:18]} Qc7 {[%emt 0:01:58]} 10. Be2 {[%emt 0:00:11]} b6 {[%emt 0:04:18]} 11. Bb2 {[%emt 0:00:55]} cxd4 {[%emt 0:04:29]} 12. cxd4 {[%emt 0:00:43]} Ba6 {[%emt 0:00:06] The position is equal.} 13. O-O {[%emt 0:06:23]} Qb7 {[%emt 0:00:11]} 14. a4 {[%emt 0:03:11]} Bxe2 {[%emt 0:05:38]} 15. Qxe2 {[%emt 0:00:13]} Rc8 {[%emt 0:00:20]} 16. Rfc1 {[%emt 0:15:59]} Nbd7 {[%emt 0:02:36] An uneventful encounter.   Weighted Error Value: White=0.01 (flawless) /Black=0.04 (flawless) .  OK:         	White=4     	Black=4} 1/2-1/2

[Event "7th Sharjah Masters 2024"]
[Site "Sharjah"]
[Date "2024.05.14"]
[Round "1.21"]
[White "Sadhwani, Raunak"]
[Black "Gavrilescu, David"]
[Result "1/2-1/2"]
[ECO "B40"]
[WhiteElo "2654"]
[BlackElo "2540"]
[Annotator "TA"]
[PlyCount "47"]
[EventDate "2024.05.13"]
[EventType "swiss"]
[EventCountry "UAE"]
[SourceTitle "playchess.com"]
[Source "ChessBase"]
[SourceQuality "1"]
[TimeControl "5400+30"]

{[%evp 11,47,0,10,2,19,7,5,0,18,14,16,0,39,34,40,37,28,30,37,37,25,40,37,34,30,49,38,31,40,42,39,0,45,33,35,40,37,27]} 1. e4 {[%emt 0:00:19]} c5 {[%emt 0:00:24]} 2. Nf3 {[%emt 0:00:04]} e6 {[%emt 0:00:24]} 3. d4 {[%emt 0:00:05]} cxd4 {[%emt 0:00:13]} 4. Nxd4 {[%emt 0:00:14]} Nf6 {[%emt 0:00:31]} 5. Bd3 {[%emt 0:00:07]} Nc6 {[%emt 0:00:33]} 6. Nxc6 {[%emt 0:00:07]} bxc6 {[%emt 0:00:52]} 7. Bf4 {[%emt 0:00:06]} d5 {[%emt 0:00:34]} 8. Nd2 {[%emt 0:00:06]} g6 {[%emt 0:00:43]} 9. c3 {[%emt 0:00:38] The position is equal.} Bg7 {[%emt 0:06:45]} 10. Qa4 {[%emt 0:03:00]} Qb6 {[%emt 0:03:15]} 11. exd5 {[%emt 0:00:46]} exd5 {[%emt 0:01:02][%cal Oe8g8]} 12. Bd6 {[%emt 0:00:07] Strongly threatening 0-0.} Bf8 {[%emt 0:02:26]} 13. Qf4 {[%emt 0:00:09]} Qd8 {[%emt 0:09:15]} 14. Bxf8 {[%emt 0:00:06]} Kxf8 {[%emt 0:01:11][%cal Be8f8,Bf8g8,Bg8g7][%mdl 32]} 15. Qh6+ {[%emt 0:00:06]} Kg8 {[%emt 0:01:53]} 16. O-O {[%emt 0:00:06]} Ng4 {[%emt 0:04:45]} 17. Qf4 {[%emt 0:00:48]} Qf6 {[%emt 0:00:16]} 18. Qxf6 {[%emt 0:01:08]} Nxf6 {[%emt 0:00:39]} 19. b4 {[%emt 0:00:04]} a5 {[%emt 0:12:21]} 20. a4 {[%emt 0:01:16]} Kg7 {[%emt 0:07:44][%cal Od5d4]} 21. Rfb1 {[%emt 0:01:41]} Bd7 {[%emt 0:05:42]} 22. Nb3 {[%emt 0:00:20] White is slightly better.} Rhb8 {[%emt 0:06:08]} 23. Nxa5 {[%emt 0:04:35] Hoping for Nb3.} c5 {[%emt 0:00:07]} 24. f3 {[%emt 0:02:28] Weighted Error Value: White=0.04 (flawless) /Black=0.05 (flawless) .  Inaccurate:     	White=1     	Black=2      OK:         	White=13    	Black=9      Best:        	---       	Black=1} (24. bxc5 $2 {too greedy.} Rxb1+ 25. Rxb1 Rxa5 $19) 1/2-1/2